[Event "Titled Tuesday Blitz July 26 Early 2022"]
[White "Shapiro, Daniel"]
[Black "Rosenberg, Evan S"]
[WhiteFideId "2001780"]
[BlackFideId "2019299"]
[WhiteElo "2221"]
[BlackElo "2291"]
[Result "1-0"]
[Round "11"]
[TimeControl "180+1"]
[Date "2022.07.27"]
[WhiteClock "0:00:49"]
[BlackClock "0:00:06"]

1. d4 {[%clk 0:03:00]}  Nf6 {[%clk 0:02:58]} 2. c4 {[%clk 0:02:58]}  e6 {[%clk 0:02:58]} 3. g3 {[%clk 0:02:58]}  b6 {[%clk 0:02:49]} 4. Bg2 {[%clk 0:02:57]}  d5 {[%clk 0:02:49]} 5. Nc3 {[%clk 0:02:54]}  Bb7 {[%clk 0:02:49]} 6. cxd5 {[%clk 0:02:51]}  exd5 {[%clk 0:02:49]} 7. Qb3 {[%clk 0:02:50]}  Be7 {[%clk 0:02:41]} 8. Nf3 {[%clk 0:02:50]}  O-O {[%clk 0:02:41]} 9. O-O {[%clk 0:02:50]}  h6 {[%clk 0:02:39]} 10. Ne5 {[%clk 0:02:46]}  c6 {[%clk 0:02:37]} 11. Bf4 {[%clk 0:02:41]}  Nbd7 {[%clk 0:02:37]} 12. Rad1 {[%clk 0:02:37]}  Re8 {[%clk 0:02:36]} 13. e4 {[%clk 0:02:35]}  Nxe5 {[%clk 0:02:03]} 14. dxe5 {[%clk 0:02:35]}  Nh5 {[%clk 0:02:03]} 15. exd5 {[%clk 0:02:34]}  Nxf4 {[%clk 0:02:02]} 16. dxc6 {[%clk 0:02:24]}  Qxd1 {[%clk 0:00:10]} 17. Rxd1 {[%clk 0:02:18]}  Nxg2 {[%clk 0:00:08]} 18. cxb7 {[%clk 0:02:15]}  Rab8 {[%clk 0:00:09]} 19. Kxg2 {[%clk 0:02:08]}  Rxb7 {[%clk 0:00:09]} 20. Qb5 {[%clk 0:01:57]}  Rf8 {[%clk 0:00:05]} 21. Rd7 {[%clk 0:01:53]}  Rxd7 {[%clk 0:00:04]} 22. Qxd7 {[%clk 0:01:53]}  Bc5 {[%clk 0:00:04]} 23. Ne4 {[%clk 0:01:46]}  a5 {[%clk 0:00:01]} 24. Nxc5 {[%clk 0:01:44]}  bxc5 {[%clk 0:00:02]} 25. Qc7 {[%clk 0:01:43]}  Re8 {[%clk 0:00:01]} 26. Qxc5 {[%clk 0:01:43]}  a4 {[%clk 0:00:01]} 27. f4 {[%clk 0:01:41]}  Re6 {[%clk 0:00:02]} 28. Qb5 {[%clk 0:01:38]}  Kh7 {[%clk 0:00:02]} 29. Qxa4 {[%clk 0:01:38]}  Kg6 {[%clk 0:00:02]} 30. Qe4+ {[%clk 0:01:37]}  f5 {[%clk 0:00:02]} 31. exf6+ {[%clk 0:01:35]}  Rxe4 {[%clk 0:00:02]} 32. fxg7 {[%clk 0:01:28]}  Kxg7 {[%clk 0:00:02]} 33. Kf3 {[%clk 0:01:28]}  Re7 {[%clk 0:00:03]} 34. b3 {[%clk 0:01:26]}  Rc7 {[%clk 0:00:03]} 35. Ke3 {[%clk 0:01:24]}  Rc2 {[%clk 0:00:04]} 36. a3 {[%clk 0:01:23]}  Rxh2 {[%clk 0:00:05]} 37. Kd3 {[%clk 0:01:21]}  Ra2 {[%clk 0:00:06]} 38. a4 {[%clk 0:01:21]}  Kg6 {[%clk 0:00:06]} 39. Kc4 {[%clk 0:01:20]}  h5 {[%clk 0:00:06]} 40. Kb5 {[%clk 0:01:21]}  Kf5 {[%clk 0:00:07]} 41. a5 {[%clk 0:01:20]}  Kg4 {[%clk 0:00:07]} 42. a6 {[%clk 0:01:20]}  Kxg3 {[%clk 0:00:08]} 43. f5 {[%clk 0:01:21]}  h4 {[%clk 0:00:08]} 44. f6 {[%clk 0:01:21]}  Rf2 {[%clk 0:00:08]} 45. a7 {[%clk 0:01:21]}  Rf5+ {[%clk 0:00:09]} 46. Kc4 {[%clk 0:01:19]}  Rf4+ {[%clk 0:00:09]} 47. Kd3 {[%clk 0:01:19]}  Rf3+ {[%clk 0:00:09]} 48. Ke2 {[%clk 0:01:18]}  Rf2+ {[%clk 0:00:10]} 49. Ke1 {[%clk 0:01:19]}  Ra2 {[%clk 0:00:10]} 50. f7 {[%clk 0:01:18]}  Ra1+ {[%clk 0:00:11]} 51. Kd2 {[%clk 0:01:17]}  Ra2+ {[%clk 0:00:11]} 52. Kc3 {[%clk 0:01:17]}  Rxa7 {[%clk 0:00:11]} 53. f8=Q {[%clk 0:01:17]}  Ra2 {[%clk 0:00:11]} 54. Qg7+ {[%clk 0:01:17]}  Kh3 {[%clk 0:00:11]} 55. b4 {[%clk 0:01:16]}  Rg2 {[%clk 0:00:10]} 56. Qd7+ {[%clk 0:01:14]}  Kg3 {[%clk 0:00:10]} 57. b5 {[%clk 0:01:12]}  h3 {[%clk 0:00:11]} 58. b6 {[%clk 0:01:09]}  Rg1 {[%clk 0:00:10]} 59. Kc2 {[%clk 0:01:07]}  h2 {[%clk 0:00:10]} 60. Qd6+ {[%clk 0:01:05]}  Kg2 {[%clk 0:00:10]} 61. b7 {[%clk 0:01:03]}  h1=Q {[%clk 0:00:09]} 62. Qd5+ {[%clk 0:01:03]}  Kf1 {[%clk 0:00:09]} 63. Qxh1 {[%clk 0:01:02]}  Rxh1 {[%clk 0:00:10]} 64. b8=Q {[%clk 0:01:01]}  Rg1 {[%clk 0:00:10]} 65. Qf4+ {[%clk 0:01:00]}  Kg2 {[%clk 0:00:10]} 66. Kd2 {[%clk 0:00:57]}  Rf1 {[%clk 0:00:10]} 67. Qg4+ {[%clk 0:00:55]}  Kh1 {[%clk 0:00:09]} 68. Ke2 {[%clk 0:00:53]}  Ra1 {[%clk 0:00:08]} 69. Qh5+ {[%clk 0:00:51]}  Kg2 {[%clk 0:00:08]} 70. Qg6+ {[%clk 0:00:50]}  Kh1 {[%clk 0:00:08]} 71. Qh7+ {[%clk 0:00:49]}  Kg1 {[%clk 0:00:07]} 72. Qg7+ {[%clk 0:00:49]}  Kh2 {[%clk 0:00:06]} 73. Qxa1 {[%clk 0:00:49]} 1-0


[Site "https://www.chess.com"]

[Event "Titled Tuesday Blitz July 26 Early 2022"]
[White "Shimanov, Aleksandr"]
[Black "Timofeev, Artyom"]
[WhiteFideId "4198603"]
[BlackFideId "4140419"]
[WhiteElo "2605"]
[BlackElo "2578"]
[Result "0-1"]
[Round "11"]
[TimeControl "180+1"]
[Date "2022.07.26"]
[WhiteClock "0:00:01"]
[BlackClock "0:00:15"]

1. e4 {[%clk 0:03:00]}  c6 {[%clk 0:02:59]} 2. Nf3 {[%clk 0:02:59]}  d5 {[%clk 0:02:59]} 3. exd5 {[%clk 0:02:59]}  cxd5 {[%clk 0:02:59]} 4. Ne5 {[%clk 0:02:59]}  Bd7 {[%clk 0:02:58]} 5. d4 {[%clk 0:02:56]}  Nc6 {[%clk 0:02:57]} 6. c3 {[%clk 0:02:33]}  Nf6 {[%clk 0:02:47]} 7. Bd3 {[%clk 0:02:24]}  g6 {[%clk 0:02:46]} 8. O-O {[%clk 0:02:21]}  Bg7 {[%clk 0:02:46]} 9. Nxc6 {[%clk 0:02:17]}  Bxc6 {[%clk 0:02:43]} 10. Bf4 {[%clk 0:02:17]}  O-O {[%clk 0:02:43]} 11. Nd2 {[%clk 0:02:16]}  b5 {[%clk 0:02:39]} 12. a3 {[%clk 0:02:14]}  Nd7 {[%clk 0:02:35]} 13. Re1 {[%clk 0:02:11]}  e6 {[%clk 0:02:33]} 14. Qe2 {[%clk 0:02:03]}  Qb6 {[%clk 0:02:23]} 15. Nf3 {[%clk 0:02:01]}  a5 {[%clk 0:02:22]} 16. b4 {[%clk 0:02:01]}  axb4 {[%clk 0:02:20]} 17. axb4 {[%clk 0:02:01]}  Ra4 {[%clk 0:02:20]} 18. Bc2 {[%clk 0:01:59]}  Ra6 {[%clk 0:02:18]} 19. Rxa6 {[%clk 0:01:47]}  Qxa6 {[%clk 0:02:18]} 20. h4 {[%clk 0:01:37]}  Qa3 {[%clk 0:02:07]} 21. Rc1 {[%clk 0:01:04]}  Nf6 {[%clk 0:01:39]} 22. Ne5 {[%clk 0:00:57]}  Rc8 {[%clk 0:01:38]} 23. Bd3 {[%clk 0:00:50]}  Be8 {[%clk 0:01:23]} 24. Bd2 {[%clk 0:00:46]}  Qa2 {[%clk 0:01:04]} 25. Be1 {[%clk 0:00:31]}  Qxe2 {[%clk 0:01:01]} 26. Bxe2 {[%clk 0:00:32]}  Ne4 {[%clk 0:01:01]} 27. f3 {[%clk 0:00:31]}  Nd6 {[%clk 0:01:00]} 28. g4 {[%clk 0:00:29]}  f6 {[%clk 0:00:50]} 29. Nd3 {[%clk 0:00:29]}  e5 {[%clk 0:00:50]} 30. Nc5 {[%clk 0:00:29]}  exd4 {[%clk 0:00:41]} 31. cxd4 {[%clk 0:00:30]}  Nc4 {[%clk 0:00:41]} 32. Ra1 {[%clk 0:00:26]}  Bc6 {[%clk 0:00:37]} 33. Bf2 {[%clk 0:00:25]}  Ra8 {[%clk 0:00:37]} 34. Rxa8+ {[%clk 0:00:22]}  Bxa8 {[%clk 0:00:37]} 35. Bd3 {[%clk 0:00:23]}  Kf7 {[%clk 0:00:33]} 36. Kg2 {[%clk 0:00:21]}  Bc6 {[%clk 0:00:33]} 37. f4 {[%clk 0:00:19]}  Bf8 {[%clk 0:00:31]} 38. Kg3 {[%clk 0:00:09]}  Nd6 {[%clk 0:00:27]} 39. Be3 {[%clk 0:00:06]}  Ne4+ {[%clk 0:00:25]} 40. Nxe4 {[%clk 0:00:04]}  dxe4 {[%clk 0:00:25]} 41. Bc2 {[%clk 0:00:05]}  Bd5 {[%clk 0:00:23]} 42. f5 {[%clk 0:00:04]}  Bxb4 {[%clk 0:00:20]} 43. fxg6+ {[%clk 0:00:04]}  hxg6 {[%clk 0:00:21]} 44. Bf4 {[%clk 0:00:04]}  Be1+ {[%clk 0:00:18]} 45. Kg2 {[%clk 0:00:03]}  Bxh4 {[%clk 0:00:17]} 46. Kf1 {[%clk 0:00:04]}  Bc4+ {[%clk 0:00:16]} 47. Kg2 {[%clk 0:00:03]}  f5 {[%clk 0:00:16]} 48. g5 {[%clk 0:00:03]}  Be1 {[%clk 0:00:16]} 49. Bd1 {[%clk 0:00:02]}  Bc3 {[%clk 0:00:15]} 50. Be5 {[%clk 0:00:02]}  Ke6 {[%clk 0:00:15]} 51. Kf2 {[%clk 0:00:02]}  Kd5 {[%clk 0:00:14]} 52. Ke3 {[%clk 0:00:02]}  Bb2 {[%clk 0:00:12]} 53. Kd2 {[%clk 0:00:01]}  Bxd4 {[%clk 0:00:12]} 54. Bf4 {[%clk 0:00:01]}  Be5 {[%clk 0:00:11]} 55. Be3 {[%clk 0:00:01]}  f4 {[%clk 0:00:11]} 56. Ba7 {[%clk 0:00:02]}  e3+ {[%clk 0:00:12]} 57. Kc2 {[%clk 0:00:03]}  Ke4 {[%clk 0:00:12]} 58. Bg4 {[%clk 0:00:03]}  f3 {[%clk 0:00:12]} 59. Bc8 {[%clk 0:00:04]}  f2 {[%clk 0:00:11]} 60. Bb7+ {[%clk 0:00:04]}  Kf4 {[%clk 0:00:12]} 61. Bg2 {[%clk 0:00:04]}  f1=Q {[%clk 0:00:12]} 62. Bxf1 {[%clk 0:00:04]}  Bxf1 {[%clk 0:00:12]} 63. Kb3 {[%clk 0:00:03]}  Bc4+ {[%clk 0:00:12]} 64. Ka3 {[%clk 0:00:03]}  e2 {[%clk 0:00:12]} 65. Bf2 {[%clk 0:00:03]}  Kxg5 {[%clk 0:00:13]} 66. Be1 {[%clk 0:00:03]}  Kf5 {[%clk 0:00:13]} 67. Bd2 {[%clk 0:00:03]}  Ke4 {[%clk 0:00:13]} 68. Bb4 {[%clk 0:00:04]}  g5 {[%clk 0:00:13]} 69. Be1 {[%clk 0:00:03]}  g4 {[%clk 0:00:14]} 70. Bf2 {[%clk 0:00:01]}  g3 {[%clk 0:00:14]} 71. Be1 {[%clk 0:00:01]}  g2 {[%clk 0:00:15]} 72. Bf2 {[%clk 0:00:01]}  g1=Q {[%clk 0:00:15]} 0-1


[Site "https://www.chess.com"]

[Event "Titled Tuesday Blitz July 26 Early 2022"]
[White "Tica, Sven"]
[Black "Demin, Vladimir"]
[WhiteFideId "14526948"]
[BlackFideId "4167457"]
[WhiteElo "2346"]
[BlackElo "2434"]
[Result "0-1"]
[Round "11"]
[TimeControl "180+1"]
[Date "2022.07.27"]
[WhiteClock "0:00:48"]
[BlackClock "0:00:40"]

1. e4 {[%clk 0:03:00]}  Nf6 {[%clk 0:02:58]} 2. e5 {[%clk 0:02:57]}  Nd5 {[%clk 0:02:56]} 3. d4 {[%clk 0:02:58]}  d6 {[%clk 0:02:56]} 4. c4 {[%clk 0:02:58]}  Nb6 {[%clk 0:02:56]} 5. f4 {[%clk 0:02:58]}  dxe5 {[%clk 0:02:55]} 6. fxe5 {[%clk 0:02:59]}  Bf5 {[%clk 0:02:56]} 7. Be3 {[%clk 0:02:59]}  e6 {[%clk 0:02:56]} 8. Nc3 {[%clk 0:02:58]}  Bb4 {[%clk 0:02:57]} 9. Be2 {[%clk 0:02:53]}  c5 {[%clk 0:02:56]} 10. Nf3 {[%clk 0:02:46]}  Nc6 {[%clk 0:02:55]} 11. a3 {[%clk 0:02:41]}  Bxc3+ {[%clk 0:02:48]} 12. bxc3 {[%clk 0:02:42]}  O-O {[%clk 0:02:49]} 13. O-O {[%clk 0:02:40]}  Na5 {[%clk 0:02:46]} 14. Nd2 {[%clk 0:02:39]}  Bg6 {[%clk 0:02:41]} 15. Qe1 {[%clk 0:02:25]}  Rc8 {[%clk 0:02:35]} 16. Rc1 {[%clk 0:02:21]}  Qe7 {[%clk 0:02:30]} 17. h4 {[%clk 0:02:09]}  h6 {[%clk 0:02:21]} 18. h5 {[%clk 0:02:08]}  Bh7 {[%clk 0:02:21]} 19. Qg3 {[%clk 0:02:09]}  Kh8 {[%clk 0:02:19]} 20. Rf4 {[%clk 0:01:48]}  cxd4 {[%clk 0:02:16]} 21. cxd4 {[%clk 0:01:46]}  Qxa3 {[%clk 0:02:15]} 22. Rg4 {[%clk 0:01:44]}  Qxc1+ {[%clk 0:02:09]} 23. Kh2 {[%clk 0:01:42]}  Rg8 {[%clk 0:02:05]} 24. Qf2 {[%clk 0:01:42]}  Bf5 {[%clk 0:02:01]} 25. Rf4 {[%clk 0:01:38]}  Qc2 {[%clk 0:01:59]} 26. g4 {[%clk 0:01:35]}  Bh7 {[%clk 0:01:58]} 27. Rxf7 {[%clk 0:01:36]}  Naxc4 {[%clk 0:01:56]} 28. Bxh6 {[%clk 0:01:36]}  Nxd2 {[%clk 0:01:24]} 29. Bxg7+ {[%clk 0:01:17]}  Rxg7 {[%clk 0:01:24]} 30. Qf6 {[%clk 0:01:18]}  Rg8 {[%clk 0:01:23]} 31. h6 {[%clk 0:01:17]}  Qg6 {[%clk 0:01:11]} 32. hxg7+ {[%clk 0:00:54]}  Rxg7 {[%clk 0:01:11]} 33. Rf8+ {[%clk 0:00:54]}  Bg8 {[%clk 0:01:10]} 34. Rxg8+ {[%clk 0:00:55]}  Kxg8 {[%clk 0:01:09]} 35. Qd8+ {[%clk 0:00:56]}  Kh7 {[%clk 0:01:07]} 36. Bd3 {[%clk 0:00:56]}  Qxd3 {[%clk 0:00:57]} 37. Qh4+ {[%clk 0:00:54]}  Kg8 {[%clk 0:00:57]} 38. Qd8+ {[%clk 0:00:54]}  Kf7 {[%clk 0:00:57]} 39. Qf6+ {[%clk 0:00:55]}  Ke8 {[%clk 0:00:53]} 40. Qxg7 {[%clk 0:00:55]}  Qe2+ {[%clk 0:00:48]} 41. Kg3 {[%clk 0:00:53]}  Qf3+ {[%clk 0:00:46]} 42. Kh4 {[%clk 0:00:51]}  Qf2+ {[%clk 0:00:41]} 43. Kh5 {[%clk 0:00:48]}  Qf7+ {[%clk 0:00:40]} 0-1


[Site "https://www.chess.com"]

[Event "Titled Tuesday Blitz July 26 Early 2022"]
[White "Vachylia, Andrii"]
[Black "Yuan, Qingyu"]
[WhiteFideId "14137224"]
[BlackFideId "8609772"]
[WhiteElo "2318"]
[BlackElo "2359"]
[Result "1-0"]
[Round "11"]
[TimeControl "180+1"]
[Date "2022.07.26"]
[WhiteClock "0:00:24"]
[BlackClock "0:00:07"]

1. e4 {[%clk 0:02:58]}  c6 {[%clk 0:03:00]} 2. d4 {[%clk 0:02:55]}  d5 {[%clk 0:03:00]} 3. Nc3 {[%clk 0:02:56]}  dxe4 {[%clk 0:03:00]} 4. Nxe4 {[%clk 0:02:57]}  Nf6 {[%clk 0:03:01]} 5. Nxf6+ {[%clk 0:02:53]}  exf6 {[%clk 0:03:01]} 6. c3 {[%clk 0:02:53]}  Bd6 {[%clk 0:03:01]} 7. Bd3 {[%clk 0:02:54]}  O-O {[%clk 0:03:02]} 8. Qc2 {[%clk 0:02:54]}  Re8+ {[%clk 0:03:02]} 9. Ne2 {[%clk 0:02:55]}  h5 {[%clk 0:03:02]} 10. Be3 {[%clk 0:02:55]}  Nd7 {[%clk 0:03:02]} 11. Ng3 {[%clk 0:02:55]}  Nb6 {[%clk 0:02:55]} 12. O-O {[%clk 0:02:54]}  Nd5 {[%clk 0:02:48]} 13. Bd2 {[%clk 0:02:54]}  h4 {[%clk 0:02:35]} 14. Nf5 {[%clk 0:02:53]}  Bxf5 {[%clk 0:02:32]} 15. Bxf5 {[%clk 0:02:54]}  Qc7 {[%clk 0:02:22]} 16. h3 {[%clk 0:02:51]}  Bh2+ {[%clk 0:02:15]} 17. Kh1 {[%clk 0:02:51]}  Bf4 {[%clk 0:02:16]} 18. Rae1 {[%clk 0:02:44]}  g6 {[%clk 0:02:01]} 19. Bg4 {[%clk 0:02:43]}  f5 {[%clk 0:01:57]} 20. Bf3 {[%clk 0:02:43]}  Nf6 {[%clk 0:01:57]} 21. c4 {[%clk 0:02:31]}  Bxd2 {[%clk 0:01:49]} 22. Qxd2 {[%clk 0:02:31]}  Kg7 {[%clk 0:01:45]} 23. Qg5 {[%clk 0:02:25]}  Qb6 {[%clk 0:01:43]} 24. Qxh4 {[%clk 0:02:20]}  Qxb2 {[%clk 0:01:33]} 25. Rb1 {[%clk 0:01:46]}  Qxa2 {[%clk 0:01:33]} 26. d5 {[%clk 0:01:47]}  cxd5 {[%clk 0:01:13]} 27. cxd5 {[%clk 0:01:45]}  Re7 {[%clk 0:01:13]} 28. d6 {[%clk 0:01:39]}  Rd7 {[%clk 0:01:13]} 29. Rxb7 {[%clk 0:01:16]}  Rxb7 {[%clk 0:00:58]} 30. Bxb7 {[%clk 0:01:15]}  Rd8 {[%clk 0:00:59]} 31. Qd4 {[%clk 0:01:09]}  a5 {[%clk 0:00:44]} 32. g4 {[%clk 0:00:59]}  Qb3 {[%clk 0:00:28]} 33. Bg2 {[%clk 0:00:51]}  fxg4 {[%clk 0:00:26]} 34. hxg4 {[%clk 0:00:51]}  Qb4 {[%clk 0:00:27]} 35. Rd1 {[%clk 0:00:43]}  Qxd4 {[%clk 0:00:21]} 36. Rxd4 {[%clk 0:00:44]}  a4 {[%clk 0:00:22]} 37. g5 {[%clk 0:00:38]}  Nh5 {[%clk 0:00:14]} 38. Bc6 {[%clk 0:00:30]}  a3 {[%clk 0:00:14]} 39. d7 {[%clk 0:00:29]}  f6 {[%clk 0:00:10]} 40. gxf6+ {[%clk 0:00:14]}  Nxf6 {[%clk 0:00:10]} 41. Ra4 {[%clk 0:00:11]}  Nxd7 {[%clk 0:00:10]} 42. Ra7 {[%clk 0:00:12]}  Kf6 {[%clk 0:00:07]} 43. Bxd7 {[%clk 0:00:12]}  a2 {[%clk 0:00:05]} 44. Bg4 {[%clk 0:00:12]}  Rd4 {[%clk 0:00:04]} 45. Bf3 {[%clk 0:00:08]}  Rd2 {[%clk 0:00:04]} 46. Kg2 {[%clk 0:00:08]}  Ke5 {[%clk 0:00:04]} 47. Kg3 {[%clk 0:00:07]}  Kd4 {[%clk 0:00:05]} 48. Bg4 {[%clk 0:00:07]}  Ke5 {[%clk 0:00:02]} 49. Ra6 {[%clk 0:00:06]}  g5 {[%clk 0:00:02]} 50. Bh5 {[%clk 0:00:05]}  Rd3+ {[%clk 0:00:02]} 51. f3 {[%clk 0:00:05]}  Rd2 {[%clk 0:00:02]} 52. Bf7 {[%clk 0:00:05]}  Kf5 {[%clk 0:00:02]} 53. Be6+ {[%clk 0:00:05]}  Ke5 {[%clk 0:00:02]} 54. Bxa2 {[%clk 0:00:06]}  Rb2 {[%clk 0:00:02]} 55. Ra5+ {[%clk 0:00:06]}  Kf6 {[%clk 0:00:03]} 56. Bd5 {[%clk 0:00:07]}  Rb4 {[%clk 0:00:03]} 57. Be4 {[%clk 0:00:07]}  Rc4 {[%clk 0:00:03]} 58. Rf5+ {[%clk 0:00:07]}  Ke6 {[%clk 0:00:02]} 59. Bd5+ {[%clk 0:00:07]}  Kxf5 {[%clk 0:00:02]} 60. Bxc4 {[%clk 0:00:08]}  Kf6 {[%clk 0:00:02]} 61. Kg4 {[%clk 0:00:08]}  Kg6 {[%clk 0:00:03]} 62. Bd3+ {[%clk 0:00:08]}  Kh6 {[%clk 0:00:03]} 63. Bf5 {[%clk 0:00:09]}  Kg7 {[%clk 0:00:03]} 64. Kxg5 {[%clk 0:00:10]}  Kf7 {[%clk 0:00:04]} 65. Bg6+ {[%clk 0:00:10]}  Kg7 {[%clk 0:00:05]} 66. f4 {[%clk 0:00:11]}  Kh8 {[%clk 0:00:06]} 67. Kf6 {[%clk 0:00:12]}  Kg8 {[%clk 0:00:06]} 68. f5 {[%clk 0:00:13]}  Kf8 {[%clk 0:00:07]} 69. Bh5 {[%clk 0:00:14]}  Kg8 {[%clk 0:00:07]} 70. Bf3 {[%clk 0:00:14]}  Kf8 {[%clk 0:00:08]} 71. Bd5 {[%clk 0:00:15]}  Ke8 {[%clk 0:00:08]} 72. Kg7 {[%clk 0:00:16]}  Ke7 {[%clk 0:00:09]} 73. f6+ {[%clk 0:00:17]}  Kd6 {[%clk 0:00:10]} 74. f7 {[%clk 0:00:17]}  Kxd5 {[%clk 0:00:11]} 75. f8=Q {[%clk 0:00:18]}  Ke5 {[%clk 0:00:12]} 76. Qf6+ {[%clk 0:00:18]}  Kd5 {[%clk 0:00:12]} 77. Kg6 {[%clk 0:00:19]}  Ke4 {[%clk 0:00:13]} 78. Qf5+ {[%clk 0:00:19]}  Ke3 {[%clk 0:00:13]} 79. Kg5 {[%clk 0:00:20]}  Kd4 {[%clk 0:00:13]} 80. Kf4 {[%clk 0:00:21]}  Kc3 {[%clk 0:00:06]} 81. Qd5 {[%clk 0:00:21]}  Kb4 {[%clk 0:00:06]} 82. Ke3 {[%clk 0:00:22]}  Ka4 {[%clk 0:00:06]} 83. Qb7 {[%clk 0:00:22]}  Ka5 {[%clk 0:00:06]} 84. Kd3 {[%clk 0:00:23]}  Ka4 {[%clk 0:00:07]} 85. Kc4 {[%clk 0:00:24]}  Ka3 {[%clk 0:00:07]} 86. Qb3# {[%clk 0:00:24]} 1-0


[Site "https://www.chess.com"]

[Event "Titled Tuesday Blitz July 26 Early 2022"]
[White "Vifleemskaia, Svetlana"]
[Black "Olivares Olivares, Claudio"]
[WhiteFideId "4129490"]
[BlackFideId "3400786"]
[WhiteElo "1929"]
[BlackElo "2249"]
[Result "1/2-1/2"]
[Round "11"]
[TimeControl "180+1"]
[Date "2022.07.27"]
[WhiteClock "0:00:06"]
[BlackClock "0:00:03"]

1. d4 {[%clk 0:03:00]}  Nf6 {[%clk 0:02:39]} 2. c4 {[%clk 0:02:59]}  e6 {[%clk 0:02:39]} 3. Nc3 {[%clk 0:02:58]}  d5 {[%clk 0:02:39]} 4. cxd5 {[%clk 0:02:57]}  exd5 {[%clk 0:02:39]} 5. Bg5 {[%clk 0:02:58]}  h6 {[%clk 0:02:39]} 6. Bh4 {[%clk 0:02:57]}  c6 {[%clk 0:02:39]} 7. e3 {[%clk 0:02:56]}  Bf5 {[%clk 0:02:39]} 8. Qf3 {[%clk 0:02:55]}  Bg6 {[%clk 0:02:36]} 9. Bxf6 {[%clk 0:02:54]}  gxf6 {[%clk 0:02:37]} 10. h4 {[%clk 0:02:52]}  h5 {[%clk 0:02:35]} 11. Nh3 {[%clk 0:02:50]}  Nd7 {[%clk 0:02:34]} 12. Nf4 {[%clk 0:02:50]}  Bd6 {[%clk 0:02:34]} 13. Nxg6 {[%clk 0:02:44]}  fxg6 {[%clk 0:02:35]} 14. Bd3 {[%clk 0:02:45]}  f5 {[%clk 0:02:30]} 15. O-O-O {[%clk 0:02:42]}  Nf6 {[%clk 0:02:30]} 16. Kb1 {[%clk 0:02:41]}  b5 {[%clk 0:02:26]} 17. Ne2 {[%clk 0:02:26]}  O-O {[%clk 0:02:16]} 18. Nf4 {[%clk 0:02:25]}  Bxf4 {[%clk 0:02:16]} 19. Qxf4 {[%clk 0:02:25]}  Qb8 {[%clk 0:02:07]} 20. Qh6 {[%clk 0:02:19]}  Kf7 {[%clk 0:02:07]} 21. f3 {[%clk 0:02:08]}  Qg3 {[%clk 0:01:59]} 22. Qf4 {[%clk 0:01:50]}  Qxf4 {[%clk 0:01:58]} 23. exf4 {[%clk 0:01:50]}  Rfe8 {[%clk 0:01:58]} 24. Rhe1 {[%clk 0:01:50]}  Rxe1 {[%clk 0:01:57]} 25. Rxe1 {[%clk 0:01:50]}  Re8 {[%clk 0:01:58]} 26. Re5 {[%clk 0:01:45]}  Nd7 {[%clk 0:01:57]} 27. Rxe8 {[%clk 0:01:43]}  Kxe8 {[%clk 0:01:58]} 28. Kc2 {[%clk 0:01:38]}  Ke7 {[%clk 0:01:55]} 29. Kd2 {[%clk 0:01:38]}  a5 {[%clk 0:01:54]} 30. b3 {[%clk 0:01:32]}  Nf8 {[%clk 0:01:42]} 31. Ke3 {[%clk 0:01:30]}  Ne6 {[%clk 0:01:42]} 32. g4 {[%clk 0:01:26]}  Kf6 {[%clk 0:01:39]} 33. Be2 {[%clk 0:01:24]}  b4 {[%clk 0:01:30]} 34. gxh5 {[%clk 0:01:12]}  gxh5 {[%clk 0:01:30]} 35. Ba6 {[%clk 0:01:12]}  Nc7 {[%clk 0:01:20]} 36. Bb7 {[%clk 0:01:07]}  Nb5 {[%clk 0:01:20]} 37. Bxc6 {[%clk 0:01:06]}  Nc3 {[%clk 0:01:20]} 38. Bb7 {[%clk 0:00:50]}  Ke7 {[%clk 0:01:19]} 39. Bc8 {[%clk 0:00:48]}  Kf6 {[%clk 0:01:19]} 40. Bb7 {[%clk 0:00:48]}  Kf7 {[%clk 0:01:12]} 41. Bc8 {[%clk 0:00:47]}  Nxa2 {[%clk 0:01:11]} 42. Bxf5 {[%clk 0:00:47]}  Nc3 {[%clk 0:00:49]} 43. Bd7 {[%clk 0:00:42]}  Kf6 {[%clk 0:00:32]} 44. Be8 {[%clk 0:00:40]}  Ke7 {[%clk 0:00:25]} 45. Bxh5 {[%clk 0:00:39]}  a4 {[%clk 0:00:21]} 46. bxa4 {[%clk 0:00:25]}  Nxa4 {[%clk 0:00:19]} 47. Kd2 {[%clk 0:00:23]}  Nc3 {[%clk 0:00:11]} 48. Bg6 {[%clk 0:00:22]}  Kf6 {[%clk 0:00:11]} 49. Bc2 {[%clk 0:00:21]}  Nb5 {[%clk 0:00:10]} 50. Kd3 {[%clk 0:00:19]}  Kg6 {[%clk 0:00:09]} 51. Bb3 {[%clk 0:00:15]}  Nc7 {[%clk 0:00:08]} 52. Bc2 {[%clk 0:00:12]}  Kh5 {[%clk 0:00:08]} 53. Ke3 {[%clk 0:00:10]}  Kxh4 {[%clk 0:00:09]} 54. Bf5 {[%clk 0:00:07]}  Kh5 {[%clk 0:00:08]} 55. Bd7 {[%clk 0:00:07]}  Kh6 {[%clk 0:00:09]} 56. f5 {[%clk 0:00:06]}  Kg5 {[%clk 0:00:09]} 57. f4+ {[%clk 0:00:07]}  Kf6 {[%clk 0:00:09]} 58. Kd3 {[%clk 0:00:07]}  Na8 {[%clk 0:00:05]} 59. Kc2 {[%clk 0:00:06]}  Nb6 {[%clk 0:00:06]} 60. Bc6 {[%clk 0:00:07]}  Kxf5 {[%clk 0:00:06]} 61. Kb3 {[%clk 0:00:07]}  Kxf4 {[%clk 0:00:06]} 62. Kxb4 {[%clk 0:00:07]}  Ke3 {[%clk 0:00:06]} 63. Kc5 {[%clk 0:00:07]}  Nc4 {[%clk 0:00:02]} 64. Bxd5 {[%clk 0:00:06]}  Nd2 {[%clk 0:00:02]} 65. Bc6 {[%clk 0:00:06]}  Nb3+ {[%clk 0:00:02]} 66. Kc4 {[%clk 0:00:06]}  Nxd4 {[%clk 0:00:03]} 1/2-1/2


[Site "https://www.chess.com"]

[Event "Titled Tuesday Blitz July 26 Early 2022"]
[White "Vlassov, Nikolai"]
[Black "Derjabin, Ilja"]
[WhiteFideId "4103360"]
[BlackFideId "14104768"]
[WhiteElo "2324"]
[BlackElo "2341"]
[Result "1-0"]
[Round "11"]
[TimeControl "180+1"]
[Date "2022.07.27"]
[WhiteClock "0:00:28"]
[BlackClock "0:00:19"]

1. e4 {[%clk 0:03:00]}  e6 {[%clk 0:02:18]} 2. c4 {[%clk 0:03:00]}  d5 {[%clk 0:02:19]} 3. cxd5 {[%clk 0:03:00]}  exd5 {[%clk 0:02:20]} 4. Qb3 {[%clk 0:03:01]}  c6 {[%clk 0:02:13]} 5. Nc3 {[%clk 0:02:51]}  Nf6 {[%clk 0:02:13]} 6. e5 {[%clk 0:02:48]}  Nfd7 {[%clk 0:02:12]} 7. d4 {[%clk 0:02:48]}  Be7 {[%clk 0:02:11]} 8. Bd3 {[%clk 0:02:48]}  Nf8 {[%clk 0:01:54]} 9. f4 {[%clk 0:02:46]}  g6 {[%clk 0:01:51]} 10. Nf3 {[%clk 0:02:45]}  Na6 {[%clk 0:01:50]} 11. O-O {[%clk 0:02:44]}  Nb4 {[%clk 0:01:40]} 12. Bb1 {[%clk 0:02:35]}  b5 {[%clk 0:01:32]} 13. a3 {[%clk 0:02:32]}  Na6 {[%clk 0:01:32]} 14. Be3 {[%clk 0:02:29]}  Ne6 {[%clk 0:01:20]} 15. f5 {[%clk 0:02:26]}  gxf5 {[%clk 0:01:20]} 16. Bxf5 {[%clk 0:02:25]}  Rg8 {[%clk 0:01:04]} 17. Bxh7 {[%clk 0:02:15]}  Rg7 {[%clk 0:01:04]} 18. Bd3 {[%clk 0:02:13]}  Qb6 {[%clk 0:01:03]} 19. Rac1 {[%clk 0:02:00]}  Bd7 {[%clk 0:01:02]} 20. Ne2 {[%clk 0:01:49]}  Nac7 {[%clk 0:00:57]} 21. Qd1 {[%clk 0:01:21]}  O-O-O {[%clk 0:00:55]} 22. b4 {[%clk 0:01:19]}  Rdg8 {[%clk 0:00:54]} 23. Ne1 {[%clk 0:01:17]}  Bg5 {[%clk 0:00:50]} 24. Bxg5 {[%clk 0:01:08]}  Rxg5 {[%clk 0:00:49]} 25. Bf5 {[%clk 0:01:01]}  Rxf5 {[%clk 0:00:44]} 26. Rxf5 {[%clk 0:01:01]}  Nxd4 {[%clk 0:00:45]} 27. Nxd4 {[%clk 0:00:55]}  Ne6 {[%clk 0:00:41]} 28. Nf3 {[%clk 0:00:49]}  Nxd4 {[%clk 0:00:32]} 29. Nxd4 {[%clk 0:00:48]}  Kb8 {[%clk 0:00:25]} 30. Rf2 {[%clk 0:00:43]}  Rg4 {[%clk 0:00:21]} 31. Rc5 {[%clk 0:00:39]}  Re4 {[%clk 0:00:21]} 32. Rxf7 {[%clk 0:00:33]}  Bg4 {[%clk 0:00:21]} 33. Qd2 {[%clk 0:00:29]}  Qd8 {[%clk 0:00:19]} 34. Nxc6+ {[%clk 0:00:28]} 1-0


[Site "https://www.chess.com"]